fUSD/lending_fUSD_20240121
["ID","MTS","AMOUNT","RATE_DAILY","PERIOD"]
[312434820,1705871500140,-9665.3,0.00043287,31]
[312434821,1705871500149,-211.56274835,0.00043287,2]
[312434822,1705871500159,-500.0,0.00043287,31]
[312434823,1705871500168,-897.32,0.00043287,31]
[312434824,1705871500178,-711.99,0.00043287,31]
[312434825,1705871500188,-624.61,0.00043287,31]
[312434826,1705871500197,-922.72,0.00043287,31]
[312434827,1705871500206,-703.04,0.00043287,31]
[312434828,1705871500218,-500.0,0.00043287,31]
[312434829,1705871500227,-500.0,0.00043287,31]
[312434830,1705871500237,-150.0,0.00043299,2]
[312434831,1705871500246,-153.02,0.000433,4]
[312434832,1705871500255,-153.02,0.000433,4]
[312434833,1705871500265,-150.0,0.00043313,2]
[312434834,1705871500276,-156.25,0.00043322,2]
[312434835,1705871500285,-150.0,0.00043333,2]
[312434836,1705871500295,-150.0,0.00043347,2]
[312434837,1705871500306,-150.0,0.00043356,2]
[312434838,1705871500316,-150.0,0.00043366,2]
[312434839,1705871500326,-150.0,0.00043366,2]
[312434840,1705871500335,-150.0,0.00043375,2]
[312434841,1705871500345,-150.0,0.00043378,2]
[312434842,1705871500355,-150.0,0.00043383,2]
[312434843,1705871500367,-150.0,0.00043383,2]
[312434844,1705871500378,-150.0,0.00043383,2]
[312434845,1705871500388,-150.0,0.00043383,2]
[312434846,1705871500399,-300.0,0.00043383,2]
[312434847,1705871500410,-307.40170157,0.0004339,2]
[312434848,1705871500420,-476.1501863,0.00043392,2]
[312434849,1705871500432,-2000.0,0.000434,18]
[312434850,1705871500443,-12628.413093,0.000434,2]
[312434851,1705871500454,-1500.0,0.00043406,2]
[312434852,1705871500469,-1500.0,0.00043407,2]
[312434853,1705871500479,-163.66150249,0.00043417,14]
[312434854,1705871500493,-150.0,0.00043422,2]
[312434855,1705871500504,-150.0,0.00043435,2]
[312434856,1705871500514,-150.0,0.00043451,2]
[312434857,1705871500524,-1500.0,0.00043462,2]
[312434858,1705871500533,-150.0,0.00043477,2]
[312434859,1705871500544,-150.0,0.00043482,2]
[312434860,1705871500554,-500.0,0.00043483,2]
[312434861,1705871500563,-800.0,0.00043483,20]
[312434862,1705871500573,-150.0,0.00043492,2]
[312434863,1705871500583,-172.72,0.000435,7]
[312434864,1705871500593,-1500.0,0.00043502,2]
[312434865,1705871500603,-150.0,0.00043502,2]
[312434866,1705871500613,-150.0,0.00043503,2]
[312434867,1705871500622,-150.0,0.00043517,2]
[312434868,1705871500632,-150.0,0.00043517,2]
[312434869,1705871500642,-1273.46899955,0.00043521,2]
[312434870,1705871500651,-150.8623145,0.00043525,20]
[312434871,1705871500660,-150.0,0.00043538,2]
[312434872,1705871500669,-150.0,0.00043539,2]
[312434873,1705871500679,-1500.0,0.00043544,2]
[312434874,1705871500688,-271.48297066,0.0004356,2]
[312434875,1705871500697,-150.0,0.00043563,2]
[312434876,1705871500707,-150.0,0.00043569,2]
[312434877,1705871500718,-150.0,0.0004357,2]
[312434878,1705871500728,-150.0,0.00043571,2]
[312434879,1705871500737,-150.0,0.00043573,2]
[312434880,1705871500746,-150.0,0.00043573,2]
[312434881,1705871500755,-150.0,0.00043576,2]
[312434882,1705871500764,-150.0,0.00043581,2]
[312434883,1705871500774,-150.0,0.00043582,2]
[312434884,1705871500784,-150.0,0.00043583,2]
[312434885,1705871500794,-150.0,0.00043587,2]
[312434886,1705871500803,-300.0,0.00043591,2]
[312434887,1705871500813,-150.0,0.00043592,2]
[312434888,1705871500822,-360.0,0.00043616,12]
[312434889,1705871500831,-360.0,0.00043616,12]
[312434890,1705871500841,-150.0,0.00043646,2]
[312434891,1705871500850,-150.0,0.00043657,2]
[312434892,1705871500861,-150.0,0.00043664,2]
[312434893,1705871500871,-154.99481882,0.00043667,14]
[312434894,1705871500881,-165.73540315,0.00043667,14]
[312434895,1705871500891,-150.0,0.00043667,2]
[312434896,1705871500901,-150.0,0.00043667,2]
[312434897,1705871500910,-1500.0,0.00043679,2]
[312434898,1705871500920,-150.0,0.00043682,2]
[312434899,1705871500930,-2000.0,0.0004369,19]
[312434900,1705871500940,-150.0,0.00043695,2]
[312434901,1705871500949,-152.71432783,0.00043695,2]
[312434902,1705871500958,-306.60094349,0.0004371,2]
[312434903,1705871500968,-150.0,0.00043733,2]
[312434904,1705871500977,-48969.32142722,0.00043737,30]
[312434905,1705871500994,-3038.82060904,0.00043737,30]
[312434906,1705871501005,-714.2364726,0.00043737,30]
[312434907,1705871501020,-848.30362295,0.00043737,30]
[312434908,1705871501044,-200.0,0.00042,2]
[312434909,1705871501053,-54.86173603,0.00043737,30]
[312434910,1705871501065,-281.13637335,0.00043737,30]
[312434911,1705871501076,-431.60659171,0.00043737,30]
[312434912,1705871501087,-532.98005436,0.00043737,30]
[312434913,1705871501103,-1450.16783378,0.00043737,30]
[312434914,1705871501114,-11438.24264982,0.00043737,30]
[312434915,1705871501126,-1408.87170037,0.00043737,30]
[312434916,1705871501151,-1403.7598275,0.00041643,31]
[312434917,1705871501162,-1176.54156301,0.00041643,31]
[312434918,1705871501173,-464.93484092,0.00041643,31]
[312434919,1705871501184,-1757.8846832,0.00041643,31]
[312434920,1705871501199,-500.0,0.00041095,31]
[312434921,1705871501207,-523.7,0.00041643,31]
[312434924,1705872632279,-250.0,0.000219,2]
[312434925,1705872632290,-429.93636505,0.00022899,2]
[312434926,1705872632300,-163.81635051,0.00022899,2]
[312434927,1705872632311,-5000.0,0.00024798,2]
[312434928,1705872632321,-209.70252633,0.00024799,2]
[312434929,1705872632331,-300.1034,0.00024899,2]
[312434930,1705872632341,-350.0,0.00025,3]
[312434931,1705872632350,-934.10101204,0.00025,2]
[312434932,1705872632360,-150.0,0.00025636,2]
[312434933,1705872632369,-1249.5542374,0.00025636,2]
[312434934,1705872632379,-1584.83662852,0.00025637,2]
[312434935,1705872632389,-499.99,0.00025641,2]
[312434936,1705872632400,-762.26,0.00025641,2]
[312434937,1705872632410,-745.06,0.00025641,2]
[312434938,1705872632420,-209.70252618,0.00025646,2]
[312434939,1705872632430,-500.0,0.00026,2]
[312434940,1705872632440,-23873.38646192,0.000262,2]
[312434941,1705872632452,-1293.658,0.000262,2]
[312434942,1705872632464,-1542.78234516,0.000262,2]
[312434943,1705872632477,-2364.17319292,0.000262,2]
[312434944,1705872632487,-209.70252618,0.00026493,2]
[312434945,1705872632498,-209.70252618,0.0002734,2]
[312434946,1705872632508,-416.36185011,0.00027396,2]
[312434947,1705872632519,-688.29650396,0.00027397,2]
[312434948,1705872632539,-501.6156142,0.00027397,2]
[312434949,1705872632560,-2657.13168263,0.00027397,2]
[312434951,1705872632572,-285.8344283,0.00027397,2]
[312434953,1705872632584,-1058.40200692,0.00027397,2]
[312434955,1705872632596,-328.56219678,0.00027397,2]
[312434959,1705872632625,-343.666,0.00027397,2]
[312434960,1705872632647,-19058.79156721,0.00027397,2]
[312434961,1705872632657,-1000.0,0.00027397,2]
[312434962,1705872632668,-209.70252618,0.00028187,2]
[312434963,1705872632677,-1000.0,0.00028767,2]
[312434964,1705872632687,-209.70252618,0.00029034,2]
[312434965,1705872632698,-731.25712485,0.000298,2]
[312434966,1705872632708,-209.70252618,0.00029881,2]
[312434967,1705872632718,-2359.04794661,0.0003,2]
[312434968,1705872632728,-155.0,0.0003,2]
[312434969,1705872632740,-750.0,0.000301,2]
[312434970,1705872632751,-1000.0,0.00030136,2]
[312434971,1705872633132,-209.70252618,0.00030728,2]
[312434972,1705872633157,-229.5,0.0003105,2]
[312434973,1705872633168,-1000.0,0.00031506,2]
[312434974,1705872633179,-209.70252618,0.00031575,2]
[312434975,1705872633190,-209.70252618,0.00032422,2]
[312434976,1705872633202,-250.0,0.00032723,2]
[312434977,1705872633214,-1000.0,0.0003276,2]
[312434978,1705872633224,-1000.0,0.00032876,2]
[312434979,1705872633236,-858.79,0.00032877,15]
[312434980,1705872633247,-156.05,0.00032891,2]
[312434981,1705872633257,-789.2663152,0.000329,4]
[312434982,1705872633267,-558.2803,0.000329,2]
[312434983,1705872633278,-156.25,0.00032991,2]
[312434984,1705872633288,-22021.43,0.00033,2]
[312434985,1705872633298,-358.58,0.00033125,2]
[312434986,1705872633308,-240.44,0.00033188,2]
[312434987,1705872633319,-209.70252618,0.0003327,2]
[312434988,1705872633329,-229.5,0.00033314,2]
[312434989,1705872633339,-156.05,0.0003332,2]
[312434990,1705872633350,-5407.43,0.00033525,2]
[312434991,1705872633361,-156.05,0.00033748,2]
[312434992,1705872633371,-250.0,0.00033945,2]
[312434993,1705872633381,-471.3066,0.00033973,10]
[312434994,1705872633391,-20457.14,0.00034,2]
[312434995,1705872633401,-1000.0,0.00034,4]
[312434996,1705872633411,-500.0,0.00034,2]
[312434997,1705872633420,-225.0,0.00034093,2]
[312434998,1705872633430,-209.70252618,0.00034117,2]
[312434999,1705872633440,-156.05,0.00034177,2]
[312435000,1705872633449,-1000.0,0.000342,2]
[312435001,1705872633459,-1000.0,0.00034246,2]
[312435002,1705872633469,-156.05,0.00034605,2]
[312435003,1705872633480,-186.18,0.0003492,2]
[312435004,1705872633489,-209.70252618,0.00034964,2]
[312435005,1705872633499,-155.0,0.00035001,5]
[312435006,1705872633509,-184.18,0.00035023,2]
[312435007,1705872633518,-181.0,0.00035475,2]
[312435008,1705872633528,-574.25,0.00035517,2]
[312435009,1705872633538,-229.5,0.00035578,2]
[312435010,1705872633549,-789.2663152,0.000356,4]
[312435011,1705872633560,-156.22312515,0.000356,2]
[312435012,1705872633570,-1000.0,0.00035616,2]
[312435013,1705872633581,-14591.394,0.000357,2]
[312435014,1705872633592,-158.16,0.000357,3]
[312435015,1705872633601,-1080.24,0.000357,3]
[312435016,1705872633611,-1080.24,0.000357,3]
[312435017,1705872633621,-1080.24,0.000357,3]
[312435018,1705872633630,-1080.24,0.000357,3]
[312435019,1705872633640,-1080.24,0.000357,3]
[312435020,1705872633649,-1080.24,0.000357,3]
[312435021,1705872633659,-1080.24,0.000357,3]
[312435022,1705872633669,-1080.24,0.000357,3]
[312435023,1705872633679,-1080.24,0.000357,3]
[312435024,1705872633689,-1080.24,0.000357,3]
[312435025,1705872633699,-1080.24,0.000357,3]
[312435026,1705872633708,-1080.24,0.000357,3]
[312435027,1705872633718,-1080.24,0.000357,3]
[312435028,1705872633728,-152.63,0.000357,3]
[312435029,1705872633740,-1080.24,0.000357,3]
[312435030,1705872633753,-1080.24,0.000357,3]
[312435031,1705872633762,-152.63,0.000357,3]
[312435032,1705872633772,-1080.24,0.000357,3]
[312435033,1705872633784,-1080.24,0.000357,3]
[312435034,1705872633796,-1080.24,0.000357,3]
[312435035,1705872633806,-1080.24,0.000357,3]
[312435036,1705872633817,-1080.24,0.000357,3]
[312435037,1705872633827,-209.70252618,0.00035811,2]
[312435038,1705872633838,-156.22312501,0.00035887,2]
[312435039,1705872633849,-233.27831906,0.000359,2]
[312435040,1705872633864,-8.78168094,0.000359,2]
[312435041,1705872633875,-156.22312501,0.00036173,2]
[312435042,1705872633887,-181.16,0.00036215,2]
[312435043,1705872633899,-181.16,0.00036253,2]
[312435044,1705872633910,-64.10496919,0.00036291,2]
[312435045,1705872633923,-117.05503081,0.00036291,2]
[312435046,1705872633933,-181.16,0.00036329,2]
[312435047,1705872633942,-73.82633142,0.00036367,2]
[312435048,1705872638753,-203.0,0.00027709,2]
[312435049,1705872638765,-203.0,0.00035782,16]
[312435050,1705872638774,-107.33366858,0.00036367,2]
[312435051,1705872638784,-158.2,0.00036382,2]
[312435052,1705872638795,-181.16,0.00036406,2]
[312435053,1705872638805,-181.16,0.00036444,2]
[312435054,1705872638816,-156.22312501,0.0003646,2]
[312435056,1705872638826,-181.16,0.00036482,2]
[312435058,1705872638836,-181.16,0.0003652,2]
[312435059,1705872638848,-181.16,0.00036558,2]
[312435060,1705872638857,-181.16,0.00036596,2]
[312435061,1705872638867,-858.79,0.00036613,15]
[312435062,1705872638875,-181.16,0.00036634,2]
[312435064,1705872638885,-209.70252618,0.00036658,2]
[312435066,1705872638896,-181.16,0.00036672,2]
[312435068,1705872638905,-181.16,0.0003671,2]
[312435070,1705872638915,-1866.934848,0.00036715,30]
[312435072,1705872638924,-156.22312501,0.00036747,2]
[312435074,1705872638933,-181.16,0.00036749,2]
[312435076,1705872638943,-181.16,0.00036787,2]
[312435078,1705872638952,-181.16,0.00036825,2]
[312435080,1705872638962,-1000.0,0.00036855,2]
[312435083,1705872638971,-181.16,0.00036863,2]
[312435086,1705872638980,-181.16,0.00036901,2]
[312435089,1705872638989,-181.16,0.00036939,2]
[312435092,1705872638998,-1000.0,0.00036986,2]
[312435094,1705872639007,-14046.00614915,0.00037013,11]
[312435096,1705872639017,-5862.21607644,0.00037013,11]
[312435099,1705872639035,-251.60714365,0.00037013,11]
[312435101,1705872639047,-5392.98769647,0.00037013,11]
[312435103,1705872639056,-914.00797902,0.00037013,8]
[312435105,1705872639066,-1984.75159134,0.00037013,11]
[312435107,1705872639075,-593.8116542,0.00037013,11]
[312435109,1705872639085,-156.22312501,0.00037033,2]
[312435111,1705872639095,-574.25,0.00037161,2]
[312435113,1705872639106,-179.52,0.00037185,2]
[312435115,1705872639116,-156.22312501,0.0003732,2]
[312435118,1705872639125,-427.3507,0.00037379,2]
[312435120,1705872639136,-57.58392245,0.00037479,4]
[312435129,1705872639218,-97.73851229,0.00037479,4]
[312435132,1705872639228,-209.70252618,0.00037505,2]
[312435134,1705872639237,-156.22312501,0.00037607,2]
[312435136,1705872639247,-180.0,0.00037802,2]
[312435138,1705872639255,-229.5,0.00037842,2]
[312435140,1705872639265,-156.22312501,0.00037893,2]
[312435142,1705872639274,-153.84,0.00037981,2]
[312435144,1705872639283,-171.39,0.00037999,2]
[312435146,1705872639292,-171.39,0.00037999,2]
[312435148,1705872639301,-171.39,0.00037999,2]
[312435150,1705872639311,-171.39,0.00037999,2]
[312435152,1705872639320,-171.39,0.00037999,2]
[312435154,1705872639329,-171.39,0.00037999,2]
[312435156,1705872639338,-171.39,0.00037999,2]
[312435158,1705872639348,-171.39,0.00037999,2]
[312435160,1705872639357,-171.39,0.00037999,2]
[312435162,1705872639366,-161.55,0.00037999,2]
[312435164,1705872639375,-100000.0,0.00038,8]
[312435166,1705872639385,-7058.0,0.00038,2]
[312435168,1705872639394,-156.22312501,0.0003818,2]
[312435170,1705872639403,-14714.28229726,0.0003829,10]
[312435173,1705872639419,-3835.24415114,0.0003829,10]
[312435175,1705872639428,-158.16,0.000383,3]
[312435176,1705872639437,-158.16,0.000383,3]
[312435179,1705872639446,-152.63,0.000383,3]
[312435181,1705872639456,-152.63,0.000383,3]
[312435183,1705872639466,-152.63,0.000383,3]
[312435185,1705872639475,-152.63,0.000383,3]
[312435187,1705872639484,-1080.24,0.000383,3]
[312435189,1705872639494,-1080.24,0.000383,3]
[312435191,1705872639502,-1080.24,0.000383,3]
[312435193,1705872639512,-1080.24,0.000383,3]
[312435195,1705872639521,-1080.24,0.000383,3]
[312435196,1705872639531,-1080.24,0.000383,3]
[312435198,1705872639540,-1080.24,0.000383,3]
[312435201,1705872639550,-1080.24,0.000383,3]
[312435202,1705872639559,-1080.24,0.000383,3]
[312435205,1705872639568,-1080.24,0.000383,3]
[312435207,1705872639579,-1080.24,0.000383,3]
[312435209,1705872639588,-1080.24,0.000383,3]
[312435211,1705872639597,-1080.24,0.000383,3]
[312435213,1705872639606,-1080.24,0.000383,3]
[312435215,1705872639615,-1080.24,0.000383,3]
[312435217,1705872639624,-1080.24,0.000383,3]
[312435219,1705872639633,-154.19419209,0.000383,3]
[312435221,1705872639645,-926.04580791,0.000383,3]
[312435223,1705872639654,-1080.24,0.000383,3]
[312435225,1705872639663,-1080.24,0.000383,3]
[312435227,1705872639672,-1080.24,0.000383,3]
[312435229,1705872639682,-209.70252618,0.00038352,2]
[312435231,1705872639691,-257.38,0.00038356,2]
[312435233,1705872639700,-475.52579089,0.000384,2]
[312435235,1705872639710,-156.22312501,0.00038467,2]
[312435237,1705872639720,-156.22312501,0.00038753,2]
[312435239,1705872639729,-574.25,0.00038805,2]
[312435241,1705872639738,-1800.0,0.00038855,7]
[312435243,1705872639752,-179.02111724,0.00038875,7]
[312435245,1705872639762,-565.47936452,0.000389,11]
[312435247,1705872639771,-155.0,0.000389,2]
[312435249,1705872639780,-285.74758466,0.00038935,7]
[312435251,1705872639790,-150.1,0.00038966,2]
[312435253,1705872639798,-281.99182628,0.0003898,2]
[312435255,1705872639807,-561.69762864,0.0003899,10]
[312435258,1705872639823,-323.0012525,0.0003899,10]
[312435413,1705872641395,-936.94810234,0.0003899,10]
[312435415,1705872641406,-3961.03631198,0.0003899,10]
[312435514,1705872643434,-422.9140546,0.0003899,10]
[312435515,1705872643488,-317.21967329,0.0003899,10]
[312435516,1705872643501,-1024.93389214,0.0003899,10]
[312435517,1705872643546,-553.84670996,0.0003899,10]
[312435518,1705872643599,-47546.98171985,0.0003899,10]
[312435519,1705872643610,-171.39,0.00038999,2]
[312435520,1705872643619,-100000.0,0.00039,9]
[312435521,1705872643628,-1428.71461591,0.00039,2]
[312435522,1705872643638,-176.39,0.00039,2]
[312435523,1705872643647,-500.0,0.00039,2]
[312435524,1705872643656,-150.0,0.00039,20]
[312435525,1705872643666,-3127.17822036,0.00039038,4]
[312435526,1705872643675,-156.22312501,0.0003904,2]
[312435527,1705872643684,-209.70252618,0.00039199,2]
[312435528,1705872643694,-167.0,0.00039221,2]
[312435529,1705872643704,-156.22312501,0.00039327,2]
[312435530,1705872643713,-183.97179688,0.0003939,2]
[312435531,1705872643723,-108434.142365,0.0003948,4]
[312435532,1705872643732,-92747.6322422,0.0003949,10]
[312435533,1705872643741,-176.39,0.00039548,2]
[312435534,1705872643753,-433.9656394,0.00039561,2]
[312435535,1705872643763,-107085.43124018,0.0003957,4]
[312435536,1705872643775,-868.26099707,0.0003957,4]
[312435537,1705872646317,-972.29595147,0.00038989,2]
[312435544,1705872646372,-614.95594492,0.00038989,2]
[312435546,1705872646382,-932.3695291,0.00038989,2]
[312435548,1705872646392,-150.0,0.0003957,7]
[312435549,1705872646403,-480.45012775,0.0003957,4]
[312435550,1705872646414,-3076.9291445,0.0003958,10]
[312435551,1705872646427,-4655.96900554,0.0003958,10]
[312435552,1705872646455,-1541.86507418,0.0003958,10]
[312435553,1705872646466,-1881.60902304,0.000396,2]
[312435554,1705872646488,-4968.68186705,0.000396,2]
[312435555,1705872646498,-156.22312501,0.00039613,2]
[312435556,1705872646509,-151.78087852,0.00039789,5]
[312435557,1705872646521,-158.2,0.00039804,2]
[312435558,1705872646532,-5344.59018593,0.00039869,10]
[312435559,1705872646604,-6648.97465759,0.00039869,10]
[312435562,1705873831525,-204.0,0.00024709,2]
[312435563,1705873831536,-1249.5542374,0.00025696,2]
[312435564,1705873831545,-192.53961303,0.0002619,2]
[312435565,1705873831555,-2526.07419397,0.0002629,2]
[312435566,1705873831565,-200.0,0.00028,2]
[312435567,1705873831574,-150.0,0.00029999,2]
[312435568,1705873831584,-155.0,0.0003,2]
[312435569,1705873831593,-150.0,0.00032767,2]
[312435570,1705873831602,-2359.04794661,0.00032799,2]
[312435571,1705873831612,-200.0156,0.000328,2]
[312435572,1705873831621,-1958.21,0.000328,2]
[312435573,1705873831631,-261.29,0.00032811,2]
[312435574,1705873831640,-192.53961301,0.00033045,2]
[312435575,1705873831650,-150.99,0.0003313,2]
[312435576,1705873831660,-204.0,0.00033532,16]
[312435577,1705873831669,-500.0,0.00034513,2]
[312435578,1705873831678,-1000.0,0.00034514,4]
[312435579,1705873831688,-250.0,0.00034515,2]
[312435580,1705873831697,-164.42,0.00034525,2]
[312435581,1705873831707,-760.0,0.00034564,2]
[312435582,1705873831717,-200.0,0.00034616,2]
[312435583,1705873831726,-500.0,0.00034616,2]
[312435584,1705873831736,-1829.61,0.00034618,2]
[312435585,1705873831745,-1565.79,0.00034619,2]
[312435586,1705873831755,-480.19,0.0003462,2]
[312435587,1705873831765,-761.83,0.00034635,2]
[312435588,1705873831775,-250.0,0.00034766,111]
[312435589,1705873831785,-715.65,0.00034781,15]
[312435590,1705873831796,-500.0,0.0003481,2]
[312435591,1705873831805,-250.0,0.00034811,2]
[312435592,1705873831815,-151.71,0.00034873,2]
[312435593,1705873831824,-4506.19,0.00034891,2]
[312435594,1705873831834,-499.99,0.00034997,2]
[312435595,1705873831843,-5094.05466202,0.00034999,2]
[312435596,1705873831853,-18139.19023063,0.00035,10]
[312435597,1705873831862,-16454.87312488,0.00035,2]
[312435598,1705873831872,-155.0,0.00035001,5]
[312435599,1705873831882,-151.71,0.00035038,2]
[312435600,1705873831891,-155.68,0.00035055,2]
[312435601,1705873831901,-261.29,0.00035075,2]
[312435602,1705873831911,-155.68,0.00035195,2]
[312435603,1705873831921,-151.71,0.00035204,2]
[312435604,1705873831931,-157.11,0.00035234,2]
[312435605,1705873831940,-155.68,0.00035336,2]
[312435606,1705873831950,-151.71,0.00035369,2]
[312435607,1705873831959,-155.68,0.00035476,2]
[312435608,1705873831968,-12104.26976051,0.00035489,4]
[312435609,1705873831979,-560.56555998,0.0003549,4]
[312435610,1705873831989,-206.0284,0.000355,2]
[312435611,1705873831998,-25334.1991,0.000355,2]
[312435612,1705873832007,-151.71,0.00035534,2]
[312435613,1705873832016,-186.0,0.000356,2]
[312435614,1705873832025,-5909.5063,0.000356,2]
[312435615,1705873832035,-8252.4018,0.000356,2]
[312435616,1705873832044,-155.68,0.00035616,2]
[312435617,1705873832054,-151.71,0.00035699,2]
[312435618,1705873832063,-152.66,0.000357,3]
[312435619,1705873832073,-648.36,0.000357,3]
[312435620,1705873832082,-648.36,0.000357,3]
[312435621,1705873832092,-648.36,0.000357,3]
[312435622,1705873832102,-648.36,0.000357,3]
[312435623,1705873832111,-648.36,0.000357,3]
[312435624,1705873832121,-648.36,0.000357,3]
[312435625,1705873832130,-648.36,0.000357,3]
[312435626,1705873832141,-648.36,0.000357,3]
[312435627,1705873832153,-648.36,0.000357,3]
[312435628,1705873832163,-648.36,0.000357,3]
[312435629,1705873832172,-648.36,0.000357,3]
[312435630,1705873832183,-648.36,0.000357,3]
[312435631,1705873832192,-648.36,0.000357,3]
[312435632,1705873832202,-648.36,0.000357,3]
[312435633,1705873832212,-648.36,0.000357,3]
[312435634,1705873832222,-648.36,0.000357,3]
[312435635,1705873832233,-648.36,0.000357,3]
[312435636,1705873832243,-648.36,0.000357,3]
[312435637,1705873832253,-648.36,0.000357,3]
[312435638,1705873832262,-648.36,0.000357,3]
[312435639,1705873832272,-155.68,0.00035756,2]
[312435640,1705873832281,-151.71,0.00035864,2]
[312435641,1705873832290,-151.71,0.0003603,2]
[312435642,1705873832300,-262.5,0.00036153,2]
[312435643,1705873832309,-151.71,0.00036195,2]
[312435644,1705873832319,-480.19,0.00036264,2]
[312435645,1705873832328,-151.71,0.0003636,2]
[312435646,1705873832338,-151.71,0.00036525,2]
[312435647,1705873832349,-1000.0,0.00036615,2]
[312435648,1705873832358,-151.71,0.0003669,2]
[312435649,1705873832368,-1002.354725,0.0003672,30]
[312435650,1705873832377,-157.11,0.00036891,2]
[312435651,1705873832386,-156.22312501,0.00036913,2]
[312435652,1705873832396,-3443.32068025,0.00037013,11]
[312435653,1705873832406,-6899.72525257,0.00037013,11]
[312435654,1705873832416,-893.13821611,0.00037013,11]
[312435655,1705873832425,-261.29,0.00037339,2]
[312435656,1705873832435,-438.1198,0.0003779,2]
[312435657,1705873832444,-2500.0,0.000378,2]
[312435658,1705873832454,-1340.0,0.000378,7]
[312435659,1705873832465,-1094.53574342,0.000378,8]
[312435660,1705873832475,-545.70149653,0.000378,10]
[312435661,1705873832485,-211.92978462,0.00037876,2]
[312435662,1705873832495,-575.74933205,0.00037883,4]
[312435663,1705873832504,-47305.9481031,0.0003789,10]
[312435664,1705873832514,-7884.32468385,0.00037897,10]
[312435665,1705873832524,-6217.8864,0.000379,2]
[312435666,1705873832533,-294.6467,0.000379,15]
[312435667,1705873832543,-4224.3428,0.000379,2]
[312435668,1705873832553,-74421.75222689,0.000379,2]
[312435669,1705873832567,-900.0,0.000379,2]
[312435670,1705873832579,-579.59745,0.000379,2]
[312435671,1705873832599,-600.0,0.000379,2]
[312435672,1705873832611,-763.87956881,0.000379,2]
[312435673,1705873832773,-2887.94746135,0.000379,2]
[312435674,1705873832829,-431.46487485,0.000379,2]
[312435675,1705873832841,-600.1261207,0.000379,2]
[312435676,1705873832854,-24858.82542715,0.000379,2]
[312435677,1705873832878,-588.94638895,0.000379,2]
[312435678,1705873832889,-1775.04369765,0.000379,2]
[312435681,1705873837549,-5000.0,0.00026289,2]
[312435682,1705873837560,-15449.50000004,0.000379,2]
[312435683,1705873837665,-2034.66080446,0.000379,2]
[312435684,1705873837681,-559.28171963,0.000379,2]
[312435685,1705873837727,-293.24869686,0.000379,2]
[312435686,1705873837739,-716.53939924,0.000379,2]
[312435687,1705873837750,-2817.60525576,0.000379,2]
[312435688,1705873837762,-761.18262149,0.000379,2]
[312435689,1705873837785,-521.63355782,0.000379,2]
[312435690,1705873837797,-1172.8,0.000379,2]
[312435691,1705873837844,-2916.61749416,0.000379,2]
[312435692,1705873837859,-268.26670555,0.000379,2]
[312435974,1705873840672,-277.45444858,0.000379,2]
[312435987,1705873840786,-355.72425126,0.000379,2]
[312436201,1705873842760,-12793.75680598,0.000379,2]
[312436318,1705873912413,2783.22880565,6.94e-05,2]
[312436319,1705873988434,205.0,9.8e-05,2]
[312436320,1705873992007,4918.78847719,0.0001305,2]
[312436321,1705873992505,238.87203598,0.000101,2]
[312436322,1705874045848,282.70460301,0.000125,2]